lending/lending_fUSD_20260306
["ID","MTS","AMOUNT","RATE_DAILY","PERIOD"]
[407846101,1772826673088,-201.15009953,0.00047214,120]
[407846102,1772826673097,-82202.66004254,0.00047214,30]
[407846103,1772826673353,-555.74105712,0.00028331,2]
[407846104,1772826673366,-1903.25894288,0.00028331,2]
[407846105,1772826673376,-1249.95,0.00043835,2]
[407846106,1772826673386,-500.0,0.00045999,120]
[407846107,1772826673395,-2078.89105707,0.00047214,30]
[407846108,1772826673408,-20439.07291062,0.00047214,30]
[407846109,1772826673690,-152.6,0.00021918,2]
[407846110,1772826673701,-1057.0,0.00028904,10]
[407846111,1772826673710,-2459.0,0.00031331,2]
[407846112,1772826673720,-293.0,0.00033308,30]
[407846113,1772826673731,-2459.0,0.00034331,2]
[407846114,1772826673740,-2459.0,0.00037331,2]
[407846115,1772826673750,-150.0,0.00039033,30]
[407846116,1772826673760,-281.0,0.00039033,30]
[407846117,1772826673769,-2459.0,0.00040331,2]
[407846118,1772826673779,-651.71896752,0.00042505,2]
[407846119,1772826673789,-301.00734927,0.00042505,2]
[407846120,1772826673799,-500.0,0.00043835,2]
[407846121,1772826673808,-1249.95,0.00043835,2]
[407846122,1772826673818,-500.0,0.00043835,2]
[407846123,1772826673827,-1249.95,0.00043835,2]
[407846124,1772826673837,-500.0,0.00043835,2]
[407846125,1772826673846,-1249.95,0.00043835,2]
[407846126,1772826673856,-500.0,0.00043835,2]
[407846127,1772826673866,-1249.95,0.00043835,2]
[407846128,1772826673875,-500.0,0.00043835,2]
[407846129,1772826673885,-1249.95,0.00043835,2]
[407846130,1772826673895,-500.0,0.00043835,2]
[407846131,1772826673905,-1249.95,0.00043835,2]
[407846132,1772826673915,-500.0,0.00043835,2]
[407846133,1772826673925,-1249.95,0.00043835,2]
[407846134,1772826673934,-500.0,0.00043835,2]
[407846135,1772826673945,-1068.63543248,0.00043835,2]
[407846136,1772826847143,151.0,0.00013577,2]
[407846137,1772826872119,219.39997085,0.00013579,2]
[407846138,1772826872152,288.39471671,0.00013579,2]
[407846139,1772826872181,500.0,0.00013579,2]
[407846140,1772826872244,575.43118117,0.00013579,2]
[407846141,1772827021457,150.0,0.00013579,2]
[407846142,1772827053102,201.8763017,0.00013579,2]
[407846143,1772827060717,500.0,0.00013579,2]
[407846144,1772827060764,252.80182682,0.00013579,2]
[407846145,1772827097388,1130.67785309,0.00013579,3]
[407846146,1772827110284,1130.67785308,0.00013579,3]
[407846147,1772827122644,1130.67785308,0.00013579,3]
[407846148,1772827141202,300.0,0.00013579,2]
[407846149,1772827148109,1421.33022234,0.00013499,2]
[407846151,1772827201233,1200.0,0.00013579,2]
[407846152,1772827201900,300.0,0.00013579,2]
[407846153,1772827201952,150.0,0.00013579,2]
[407846154,1772827208375,153.57997959,0.00013579,2]
[407846157,1772827224856,244.16224157,0.0001357,2]
[407846158,1772827224879,84.12346709,0.0001357,2]
[407846159,1772827233163,1244.19749992,0.00013579,3]
[407846160,1772827250945,1964.41016623,0.00013579,3]
[407846162,1772827293669,3331.983,0.00013309,2]
[407846163,1772827293810,227.005,0.00013309,2]
[407846164,1772827310308,330.1784179,0.0001349,2]
[407846166,1772827321613,300.0,0.00013579,2]
[407846167,1772827329913,151.0,0.00013577,2]
[407846168,1772827341338,150.0,0.00013377,2]
[407846169,1772827344004,163.775579,0.00013377,2]
[407846170,1772827344805,177.551158,0.00013377,2]
[407846171,1772827345561,191.326737,0.00013377,2]
[407846172,1772827346418,205.102316,0.00013377,2]
[407846173,1772827347048,218.877895,0.00013377,2]
[407846174,1772827347819,232.653474,0.00013377,2]
[407846175,1772827348581,246.429053,0.00013377,2]
[407846176,1772827349351,260.204632,0.00013377,2]
[407846177,1772827350142,273.980211,0.00013377,2]
[407846178,1772827351855,247.21139386,0.0001349,2]
[407846179,1772827351878,4317.56628572,0.0001349,2]
[407846180,1772827358483,500.0,0.00013579,2]
[407846181,1772827358582,611.32748964,0.00013579,2]
[407846185,1772827376327,4571.11622464,0.00013579,2]
[407846186,1772827376350,10000.01,0.00013579,2]
[407846187,1772827376372,10000.01,0.00013579,2]
[407846188,1772827376394,5264.21815832,0.00013579,2]
[407846189,1772827381246,300.0,0.00013579,2]
[407846190,1772827381490,150.0,0.00013579,2]
[407846191,1772827389079,500.0,0.0001348,2]
[407846192,1772827402236,500.0,0.00013579,2]
[407846193,1772827406313,535.0,0.0001342,2]
[407846194,1772827407130,2750.79184168,0.0001349,2]
[407846195,1772827407156,10000.01,0.0001349,2]
[407846196,1772827407197,2532.47304433,0.0001349,2]
[407846199,1772827421431,500.0,0.00013579,2]
[407846200,1772827436040,500.0,0.00013579,2]
[407846201,1772827446054,500.0,0.00013579,2]
[407846202,1772827446103,500.0,0.00013579,2]
[407846203,1772827458966,500.0,0.00013579,2]
[407846204,1772827478800,500.0,0.00013579,2]
[407846205,1772827493265,500.0,0.00013579,2]
[407846206,1772827501438,1200.0,0.00013579,2]
[407846207,1772827503461,500.0,0.00013579,2]
[407846208,1772827503509,500.0,0.00013579,2]
[407846209,1772827516333,500.0,0.00013579,2]
[407846210,1772827534134,1267.53695567,0.0001349,2]
[407846211,1772827534155,10000.01,0.0001349,2]
[407846212,1772827534176,3915.40596025,0.0001349,2]
[407846215,1772827537425,386.32457567,0.00013579,2]
[407846216,1772827541270,372.17701813,0.0001349,2]
[407846217,1772827545980,221.5726,0.0001348,2]
[407846218,1772827551874,500.0,0.00013579,2]
[407846219,1772827561146,300.0,0.00013579,2]
[407846220,1772827561381,150.0,0.00013579,2]
[407846221,1772827562672,500.0,0.00013579,2]
[407846222,1772827562725,500.0,0.00013579,2]
[407846223,1772827568565,4000.0,0.00013192,2]
[407846224,1772827568782,3069.9358062,0.00013522,2]
[407846225,1772827568804,930.0641938,0.00013522,2]
[407846227,1772827576166,500.0,0.00013579,2]
[407846228,1772827588082,500.0,0.00013579,2]
[407846229,1772827595125,-435.52141769,0.0001358,2]
[407846230,1772827600415,500.0,0.00013579,2]
[407846231,1772827621046,500.0,0.00013579,2]
[407846232,1772827632107,4019.76456179,0.00013482,2]
[407846233,1772827635175,500.0,0.0001142,2]
[407846234,1772827635489,510.32990281,0.0001142,2]
[407846235,1772827635619,518.80014401,8.58e-05,2]
[407846236,1772827635710,500.0,0.0001142,2]
[407846237,1772827635800,500.0,0.00013579,2]
[407846238,1772827635875,521.05119759,0.0001142,2]
[407846239,1772827635902,55.31799623,0.0001142,2]
[407846240,1772827636254,500.0,8.58e-05,2]
[407846241,1772827645849,500.0,0.00013579,2]
[407846242,1772827645902,500.0,0.00013579,2]
[407846243,1772827658587,500.0,0.00013579,2]
[407846244,1772827678758,500.0,0.00013579,2]
[407846245,1772827681545,300.0,0.00013579,2]
[407846246,1772827692993,500.0,0.00013579,2]
[407846247,1772827693038,500.0,0.00013579,2]
[407846248,1772827705601,500.0,0.00013579,2]
[407846249,1772827720643,220.11894528,0.00013481,2]
[407846250,1772827724416,500.0,0.00013579,2]
[407846251,1772827738939,500.0,0.00013579,2]
[407846252,1772827738992,500.0,0.00013579,2]
[407846253,1772827741328,150.0,0.00013579,2]
[407846254,1772827741495,300.0,0.00013579,2]
[407846255,1772827751544,500.0,0.00013579,2]
[407846256,1772827756137,-3406.81403904,0.0001358,2]
[407846257,1772827770150,500.0,0.00013579,2]
[407846258,1772827771641,295.07650273,0.00013566,2]
[407846259,1772827776959,165.79721534,0.00013481,2]
[407846260,1772827784737,500.0,0.00013579,2]
[407846261,1772827784790,500.0,0.00013579,2]
[407846262,1772827797487,500.0,0.00013579,2]
[407846263,1772827801142,513.69934042,0.00013579,2]
[407846264,1772827801165,686.30065958,0.00013579,2]
[407846265,1772827801192,300.0,0.00013579,2]
[407846266,1772827805185,262.0,0.0001358,2]
[407846267,1772827813847,218.85713911,0.0001357,2]
[407846268,1772827816934,500.0,0.00013579,2]
[407846269,1772827817792,500.0,0.00013572,2]
[407846270,1772827818392,500.0,0.00013572,2]
[407846271,1772827818987,500.0,0.00013572,2]
[407846272,1772827819575,500.0,0.00013572,2]
[407846273,1772827820172,500.0,0.00013572,2]
[407846274,1772827820778,500.0,0.00013572,2]
[407846275,1772827821375,500.0,0.00013572,2]
[407846276,1772827821983,500.0,0.00013572,2]
[407846277,1772827822602,500.0,0.00013572,2]
[407846278,1772827823205,500.0,0.00013572,2]
[407846279,1772827823810,500.0,0.00013572,2]
[407846286,1772827832075,-302.18492085,0.0001358,2]
[407846288,1772827832086,-385.00293256,0.0001358,2]
[407846289,1772827832097,-8544.43753357,0.0001358,2]
[407846290,1772827832128,-787.13415081,0.0001358,2]
[407846291,1772827832139,-2769.66149264,0.0001358,2]
[407846292,1772827832150,-3854.95573744,0.0001358,2]
[407846293,1772827832235,-422.81516774,0.0001358,2]
[407846294,1772827832246,-51772.12309136,0.0001358,2]
[407846295,1772827832257,-303.8818997,0.0001358,2]
[407846309,1772827833386,1852.42,0.00013137,2]
[407846311,1772827837403,194.7148365,0.0001358,2]
[407846317,1772827838143,-30510.12557185,0.0001358,2]
[407846318,1772827838196,-307.92957538,0.0001358,2]
[407846319,1772827838250,-365.34528072,0.0001358,2]
[407846320,1772827838261,-344661.21450994,0.0001358,2]
[407846321,1772827838272,-15837.27592586,0.0001358,2]
[407846322,1772827838357,-2035333.57675285,0.0001358,2]
[407846323,1772827838367,-250.0,0.00013581,2]
[407846324,1772827838379,-200.0,0.00013582,2]
[407846325,1772827838388,-3700.0,0.000136,4]
[407846326,1772827838398,-500.0,0.00013698,2]
[407846327,1772827838409,-500.0,0.00013698,2]
[407846329,1772827838419,-500.0,0.00013698,2]
[407846330,1772827838428,-500.0,0.00013698,2]
[407846331,1772827838437,-500.0,0.00013698,2]
[407846332,1772827838447,-500.0,0.00013698,2]
[407846333,1772827838457,-500.0,0.00013698,2]
[407846334,1772827838467,-500.0,0.00013698,2]
[407846335,1772827838476,-500.0,0.00013698,2]
[407846336,1772827838485,-500.0,0.00013698,2]
[407846338,1772827838494,-500.0,0.00013698,2]
[407846340,1772827838504,-500.0,0.00013698,2]
[407846342,1772827838513,-500.0,0.00013698,2]
[407846344,1772827838523,-500.0,0.00013698,2]
[407846345,1772827838533,-500.0,0.00013698,2]
[407846346,1772827838542,-500.0,0.00013698,2]
[407846347,1772827838551,-500.0,0.00013698,2]
[407846348,1772827838561,-500.0,0.00013698,2]
[407846349,1772827838570,-500.0,0.00013698,2]
[407846350,1772827838584,-500.0,0.00013698,2]
[407846351,1772827838593,-500.0,0.00013698,2]
[407846352,1772827838603,-500.0,0.00013698,2]
[407846353,1772827838613,-500.0,0.00013698,2]
[407846354,1772827838622,-500.0,0.00013698,2]
[407846355,1772827838632,-500.00608588,0.00013698,2]
[407846356,1772827838641,-500.0,0.00013698,2]
[407846357,1772827838651,-500.0,0.00013698,2]
[407846358,1772827838661,-500.0,0.00013698,2]
[407846359,1772827838670,-500.0,0.00013698,2]
[407846360,1772827838680,-500.0,0.00013698,2]
[407846361,1772827838690,-500.0,0.00013698,2]
[407846362,1772827838700,-500.0,0.00013698,2]
[407846363,1772827838710,-500.0,0.00013698,2]
[407846364,1772827838719,-500.0,0.00013698,2]
[407846365,1772827838729,-500.0,0.00013698,2]
[407846366,1772827838738,-500.0,0.00013698,2]
[407846367,1772827838748,-500.0,0.00013698,2]
[407846368,1772827838758,-500.0,0.00013698,2]
[407846369,1772827838772,-500.0,0.00013698,2]
[407846370,1772827838782,-500.0,0.00013698,2]
[407846371,1772827838792,-500.0,0.00013698,2]
[407846372,1772827838801,-500.0,0.00013698,2]
[407846373,1772827838811,-456.89150894,0.00013698,2]
[407846374,1772827838820,-500.0,0.00013698,2]
[407846375,1772827838830,-500.0,0.00013698,2]
[407846376,1772827838841,-500.0,0.00013698,2]
[407846377,1772827838852,-500.0,0.00013698,2]
[407846378,1772827838861,-500.0,0.00013698,2]
[407846379,1772827838872,-500.0,0.00013698,2]
[407846380,1772827838881,-500.0,0.00013698,2]
[407846381,1772827838893,-500.0,0.00013698,2]
[407846382,1772827838903,-500.0,0.00013698,2]
[407846383,1772827838913,-500.0,0.00013698,2]
[407846384,1772827838923,-500.0,0.00013698,2]
[407846385,1772827838933,-500.0,0.00013698,2]
[407846386,1772827838942,-500.0,0.00013698,2]
[407846387,1772827838954,-500.0,0.00013698,2]
[407846388,1772827838963,-500.0,0.00013698,2]
[407846389,1772827838979,-500.0,0.00013698,2]
[407846390,1772827838989,-500.0,0.00013698,2]
[407846391,1772827838999,-500.0,0.00013698,2]
[407846392,1772827839008,-500.0,0.00013698,2]
[407846393,1772827839018,-500.0,0.00013698,2]
[407846394,1772827839028,-500.0,0.00013698,2]
[407846395,1772827839038,-648.56,0.00013698,2]
[407846396,1772827839048,-648.56,0.00013698,2]
[407846397,1772827839057,-648.56,0.00013698,2]
[407846398,1772827839068,-648.56,0.00013698,2]
[407846399,1772827839078,-648.56,0.00013698,2]
[407846400,1772827839088,-648.56,0.00013698,2]
[407846401,1772827839097,-648.56,0.00013698,2]
[407846402,1772827839107,-648.56,0.00013698,2]
[407846403,1772827839117,-648.56,0.00013698,2]
[407846404,1772827839127,-648.56,0.00013698,2]
[407846405,1772827839136,-500.0,0.00013698,2]
[407846406,1772827839147,-500.0,0.00013698,2]
[407846407,1772827839157,-551.6181156,0.00013698,2]
[407846408,1772827839167,-500.0,0.00013698,2]
[407846409,1772827839176,-500.0,0.00013698,2]
[407846410,1772827839186,-500.0,0.00013698,2]
[407846411,1772827839195,-500.0,0.00013698,2]
[407846412,1772827839208,-500.0,0.00013698,2]
[407846413,1772827839218,-500.0,0.00013698,2]
[407846414,1772827839227,-500.0,0.00013698,2]
[407846415,1772827839237,-500.0,0.00013698,2]
[407846416,1772827839246,-500.0,0.00013698,2]
[407846417,1772827839256,-500.0,0.00013698,2]
[407846418,1772827839267,-500.0,0.00013698,2]
[407846419,1772827839278,-500.0,0.00013698,2]
[407846420,1772827839288,-630.81055911,0.00013698,2]
[407846421,1772827839299,-500.0,0.00013698,2]
[407846422,1772827839308,-500.0,0.00013698,2]
[407846423,1772827839318,-500.0,0.00013698,2]
[407846424,1772827839328,-500.0,0.00013698,2]
[407846425,1772827839347,-500.0,0.00013698,2]
[407846426,1772827839357,-500.0,0.00013698,2]
[407846427,1772827839367,-500.0,0.00013698,2]
[407846428,1772827839378,-500.0,0.00013698,2]
[407846429,1772827839388,-500.0,0.00013698,2]
[407846430,1772827839398,-379.68782672,0.00013698,2]
[407846431,1772827839408,-500.0,0.00013698,2]
[407846432,1772827839418,-500.0,0.00013698,2]
[407846433,1772827839429,-500.0,0.00013698,2]
[407846434,1772827839438,-500.0,0.00013698,2]
[407846435,1772827839448,-238.94152203,0.00013699,2]
[407846436,1772827839459,-500.0,0.000137,5]
[407846437,1772827839468,-7500.0,0.000137,5]
[407846438,1772827839478,-11300.0,0.000138,5]
[407846439,1772827839487,-1000.0,0.00013844,2]
[407846440,1772827839498,-4000.0,0.00013852,2]
[407846441,1772827839508,-2407.35920063,0.00013874,2]
[407846442,1772827839518,-157.40983265,0.00013874,2]
[407846443,1772827839528,-10742.88,0.00013886,2]
[407846444,1772827839542,-608.86,0.000139,2]
[407846445,1772827839552,-9999.99,0.000139,2]
[407846446,1772827839562,-150.99,0.000139,2]
[407846447,1772827839572,-14676.68,0.000139,2]
[407846448,1772827839581,-150.99,0.000139,2]
[407846449,1772827839591,-9999.99,0.000139,2]
[407846450,1772827839601,-9999.99,0.000139,2]
[407846451,1772827839611,-15100.0,0.000139,5]
[407846452,1772827839620,-500.0,0.00013973,2]
[407846453,1772827839630,-501.11845623,0.00013973,2]
[407846454,1772827839639,-500.0,0.00013973,2]
[407846455,1772827839649,-637.7067289,0.00013973,2]
[407846456,1772827839659,-501.86035421,0.00013973,2]
[407846457,1772827839668,-500.0,0.00013973,2]
[407846458,1772827839678,-219.32528239,0.00013973,2]
[407846459,1772827839688,-167.08473967,0.00013973,2]
[407846460,1772827839698,-167.11665281,0.00013973,2]
[407846461,1772827839708,-167.13661669,0.00013973,2]
[407846462,1772827839717,-500.0,0.00013973,2]
[407846463,1772827839726,-407.46862187,0.00013973,2]
[407846464,1772827839738,-500.0,0.00013973,2]
[407846465,1772827839748,-500.0,0.00013973,2]
[407846466,1772827839758,-500.0,0.00013973,2]
[407846467,1772827839768,-500.0,0.00013973,2]
[407846468,1772827839778,-240.12890457,0.00013973,2]
[407846469,1772827839787,-163.17298866,0.00013973,2]
[407846470,1772827839796,-500.0,0.00013974,5]
[407846471,1772827839806,-7582.43,0.00013974,2]
[407846472,1772827839816,-999.99,0.00013974,2]
[407846473,1772827839825,-7320.46,0.00013974,2]
[407846474,1772827839835,-45280.47,0.00013974,2]
[407846475,1772827839844,-4999.99,0.00013974,2]
[407846476,1772827839854,-312.02,0.00013974,2]
[407846477,1772827839863,-1565.73,0.00013974,2]
[407846478,1772827839873,-9999.99,0.00013974,2]
[407846479,1772827839883,-14413.41754373,0.00014017,2]
[407846480,1772827839893,-499.99,0.00014059,2]
[407846481,1772827839902,-299.99,0.00014059,2]
[407846482,1772827839912,-1187.09,0.00014059,2]
[407846483,1772827839922,-23868.35,0.00014059,2]
[407846484,1772827839932,-15169.996,0.00014059,2]
[407846486,1772827839942,-500.12727946,0.00014073,2]
[407846488,1772827839954,-500.11286481,0.00014073,2]
[407846489,1772827839964,-217.37822009,0.00014081,2]
[407846490,1772827839973,-337.92582452,0.00014081,2]
[407846491,1772827839983,-363.26676396,0.00014081,2]
[407846492,1772827839993,-365.55725109,0.00014081,2]
[407846493,1772827840003,-550.97468009,0.00014081,2]
[407846494,1772827840013,-1233.50474752,0.00014081,2]
[407846495,1772827840024,-1355.94166453,0.00014081,2]
[407846496,1772827840033,-1371.36995902,0.00014081,2]
[407846497,1772827840043,-151.89678492,0.00014081,2]
[407846498,1772827840052,-400.995906,0.00014139,7]
[407846499,1772827840061,-259.47,0.00014155,2]
[407846500,1772827840071,-389.89566096,0.00014158,2]
[407846501,1772827840080,-500.0,0.00014158,2]
[407846502,1772827840090,-500.0,0.00014158,2]
[407846503,1772827840100,-4000.0,0.00014182,2]
[407846504,1772827840109,-15182.95291585,0.00014202,2]
[407846505,1772827840128,-500.0,0.00014248,5]
[407846506,1772827840138,-968.15072587,0.0001429,2]
[407846507,1772827840148,-1083.0,0.00014439,2]
[407846508,1772827840162,-617.0,0.00014468,2]
[407846509,1772827840171,-4000.0,0.00014511,2]
[407846510,1772827840181,-1000.0,0.00014521,2]
[407846511,1772827840191,-1000.0,0.00014521,2]
[407846512,1772827840201,-500.0,0.00014521,2]
[407846513,1772827840212,-502.06786579,0.00014521,2]
[407846514,1772827840222,-1001.72819961,0.00014521,2]
[407846515,1772827840232,-500.0,0.00014521,2]
[407846516,1772827840241,-1000.0,0.00014521,2]
[407846517,1772827840251,-500.0,0.00014522,5]
[407846518,1772827840260,-372.17701813,0.00014558,2]
[407846519,1772827840270,-212.0,0.00014665,2]
[407846520,1772827840280,-422.0,0.00014665,2]
[407846521,1772827840290,-255.0,0.00014693,2]
[407846522,1772827840300,-700.0,0.00014695,2]
[407846523,1772827840309,-339.0,0.00014695,2]
[407846524,1772827840319,-244.28312793,0.00014724,2]
[407846525,1772827840329,-362.62096704,0.00014796,5]
[407846526,1772827840340,-500.0,0.00014857,2]
[407846527,1772827840350,-500.0,0.00014857,2]
[407846529,1772827840359,-164.71106665,0.00014857,2]
[407846531,1772827840368,-500.0,0.00014857,2]
[407846533,1772827840379,-500.0,0.00014857,2]
[407846535,1772827840388,-500.0,0.00014857,2]
[407846536,1772827840398,-500.0,0.00014857,2]
[407846537,1772827840407,-15182.95291585,0.00014914,2]
[407846538,1772827840419,-1680.0,0.00014937,2]
[407846539,1772827840428,-500.0,0.00014938,2]
[407846540,1772827840438,-600.0,0.00014938,2]
[407846541,1772827840447,-564.76476902,0.00014938,2]
[407846542,1772827840457,-250.0,0.00014938,2]
[407846543,1772827840467,-5000.0,0.00014938,2]
[407846544,1772827840476,-300.0,0.00014938,2]
[407846545,1772827840486,-600.0,0.00014938,2]
[407846546,1772827840496,-600.0,0.00014938,2]
[407846547,1772827840509,-300.0,0.00014938,2]
[407846548,1772827840519,-305.05958288,0.00014938,2]
[407846549,1772827840528,-300.0,0.00014938,2]
[407846550,1772827840538,-300.0,0.00014938,2]
[407846551,1772827840548,-300.0,0.00014938,2]
[407846552,1772827840557,-300.0,0.00014938,2]
[407846553,1772827840567,-300.0,0.00014938,2]
[407846554,1772827840576,-150.0,0.00014938,2]
[407846555,1772827840586,-600.0,0.00014938,2]
[407846556,1772827840595,-2954.20351618,0.00015,14]
[407846557,1772827840605,-2327.55718638,0.00015,7]
[407846558,1772827840614,-10000.0,0.00015,2]
[407846559,1772827840624,-250.0,0.00015,2]
[407846560,1772827840633,-500.0,0.00015,14]
[407846561,1772827840643,-1001.33101077,0.00015068,2]
[407846562,1772827840652,-1500.0,0.00015068,2]
[407846563,1772827840662,-900.0,0.00015068,2]
[407846564,1772827840671,-1000.0,0.00015086,2]
[407846565,1772827840680,-500.0,0.00015405,2]
[407846566,1772827840690,-500.0,0.00015405,2]
[407846567,1772827840700,-500.18261012,0.00015405,2]
[407846568,1772827840712,-1000.0,0.00015405,2]
[407846569,1772827840722,-1000.0,0.00015405,2]
[407846570,1772827840732,-500.0,0.00015405,2]
[407846571,1772827840741,-895.34,0.00015471,2]
[407846572,1772827840751,-2000.0,0.00015616,2]
[407846573,1772827840760,-15182.95291585,0.00015627,2]
[407846574,1772827840770,-372.17701813,0.00015627,2]
[407846575,1772827840779,-2000.0,0.0001582,2]
[407846576,1772827840788,-150.0,0.000159,2]
[407846577,1772827840797,-150.0,0.000159,2]
[407846578,1772827840807,-150.0,0.000159,2]
[407846579,1772827840816,-150.0,0.000159,2]
[407846580,1772827840826,-433.0,0.00015901,2]
[407846581,1772827840836,-2000.0,0.0001592,2]
[407846582,1772827840845,-1500.0,0.00015953,2]
[407846583,1772827840855,-258.69744367,0.0001596,2]
[407846584,1772827840864,-2000.0,0.0001602,2]
[407846585,1772827840873,-2649.876321,0.00016052,7]
[407846586,1772827840883,-7979.49,0.00016116,2]
[407846587,1772827840895,-2000.0,0.0001612,2]
[407846588,1772827840905,-2003.37044262,0.00016164,2]
[407846589,1772827840914,-500.11732428,0.00016173,2]
[407846590,1772827840924,-500.0,0.00016173,2]
[407846591,1772827840933,-52222.43050863,0.000162,5]
[407846592,1772827840943,-380.42,0.0001621,2]
[407846593,1772827840955,-2000.0,0.0001622,2]
[407846594,1772827840964,-750.0,0.00016255,2]
[407846595,1772827840974,-600.0,0.00016255,14]
[407846596,1772827840983,-2000.0,0.0001632,2]
[407846597,1772827840993,-15182.95291585,0.00016339,2]
[407846598,1772827841003,-500.0,0.00016379,2]
[407846599,1772827841012,-500.0,0.00016379,2]
[407846600,1772827841022,-150.0,0.000164,2]
[407846601,1772827841031,-213.0,0.000164,2]
[407846602,1772827841041,-302.46,0.000164,2]
[407846603,1772827841051,-352.32802655,0.000164,2]
[407846604,1772827841061,-2351.0,0.00016431,2]
[407846605,1772827841070,-900.0,0.00016438,2]
[407846606,1772827841080,-380.42,0.0001648,2]
[407846607,1772827841090,-1094.27,0.000165,2]
[407846608,1772827841100,-2000.0,0.00016501,2]
[407846609,1772827841110,-220.11894526,0.00016691,2]
[407846610,1772827841120,-372.17701813,0.00016695,2]
[407846611,1772827841130,-500.0,0.00016721,2]
[407846612,1772827841140,-380.42,0.0001675,2]
[407846613,1772827841150,-217.38,0.00016826,2]
[407846614,1772827841159,-2407.35920062,0.00016887,2]
[407846615,1772827841169,-3816.51,0.00016891,120]
[407846616,1772827841179,-5621.12574049,0.000169,3]
[407846617,1772827841188,-501.244883,0.00016967,7]
[407846618,1772827841199,-1000.0,0.00016972,2]
[407846619,1772827841210,-372.24433971,0.00016973,2]
[407846620,1772827841219,-500.0,0.00016973,2]
[407846621,1772827841229,-500.0,0.00016973,2]
[407846622,1772827841238,-500.0,0.00016973,2]
[407846623,1772827841247,-164.89685656,0.00016973,2]
[407846625,1772827841257,-500.07952757,0.00016973,2]
[407846627,1772827841266,-301.78790722,0.00016973,2]
[407846628,1772827841281,-500.0,0.00016973,2]
[407846629,1772827841290,-500.0,0.00016973,2]
[407846630,1772827841300,-500.0,0.00016973,2]
[407846631,1772827841310,-500.0,0.00016973,2]
[407846632,1772827841319,-500.0,0.00016973,2]
[407846633,1772827841329,-500.0,0.00016973,2]
[407846634,1772827841341,-500.0,0.00016973,2]
[407846635,1772827841351,-500.0,0.00016973,2]
[407846636,1772827841361,-500.0,0.00016973,2]
[407846637,1772827841370,-500.0,0.00016973,2]
[407846638,1772827841380,-500.0,0.00016973,2]
[407846639,1772827841390,-10000.0,0.00017,2]
[407846640,1772827841399,-283254.29855569,0.00017,2]
[407846641,1772827841410,-10000.0,0.00017,2]
[407846642,1772827841419,-300.0,0.00017,2]
[407846643,1772827841430,-380.42,0.0001702,2]
[407846644,1772827841440,-2500.0,0.00017049,2]
[407846645,1772827841451,-15182.95291585,0.00017051,2]
[407846646,1772827841460,-981.87293994,0.0001711,2]
[407846647,1772827841471,-736.0,0.00017205,2]
[407846648,1772827841481,-380.42,0.0001729,2]
[407846649,1772827841491,-1635.64,0.00017318,120]
[407846650,1772827841501,-1830.9,0.00017371,2]
[407846651,1772827841511,-2041.83,0.0001751,7]
[407846652,1772827841521,-1000.0,0.00017521,2]